[Event "51st Rilton Cup 2023-24"]
[Site "Stockholm"]
[Date "2023.12.27"]
[Round "1.6"]
[White "Subelj, Jan"]
[Black "Karamsetty, Jeevan"]
[Result "1-0"]
[ECO "C70"]
[WhiteElo "2512"]
[BlackElo "2275"]
[Annotator "TA"]
[PlyCount "108"]
[EventDate "2023.12.27"]
[EventType "swiss"]
[EventCountry "SWE"]
[SourceTitle "playchess.com"]
[Source "ChessBase"]
[SourceQuality "1"]
[TimeControl "40/5400+30:1800+30"]

{[%evp 11,108,26,32,0,0,0,0,0,-4,-174,-157,-175,-185,-188,-161,-178,-160,-209,-199,-212,-178,-185,-159,-185,-187,-201,-193,-200,-194,-210,-224,-245,-245,-330,-312,-307,-302,-291,-314,-303,-292,-250,-183,-268,-260,-301,-292,-465,-464,-451,-440,-440,-440,-425,-437,-462,850,850,836,836,797,768,923,916,837,429,933,486,1231,524,784,409,428,406,368,368,463,460,460,437,458,445,445,441,495,471,495,492,1426,1891,29968,29969,29968,29970,29968,6716,29972,6716,29991]} 1. e4 {[%emt 0:00:13]} e5 {[%emt 0:00:20]} 2. Nf3 {[%emt 0:00:21]} Nc6 {[%emt 0:00:16]} 3. Bb5 {[%emt 0:01:04][%cal Bf1b5,Bb5a4,Ba4b3][%mdl 32]} a6 {[%emt 0:00:19]} 4. Ba4 {[%emt 0:00:40]} b5 {[%emt 0:00:34]} 5. Bb3 {[%emt 0:00:12]} Na5 {[%emt 0:00:07]} 6. d4 {[%emt 0:05:41]} exd4 {[%emt 0:00:55]} 7. Nxd4 {[%emt 0:04:21][%cal Ob3f7] C70: Ruy Lopez: 3...a6 4 Ba4, Norwegian and Delayed Schliemann.} (7. Qxd4 {keeps more tension.} Bb7 8. O-O Nf6 9. e5) 7... Bb7 {[%emt 0:01:18]} 8. O-O {[%emt 0:01:01]} c5 {[%emt 0:26:28]} (8... Bxe4 $2 9. Qe1 d5 10. f3 $18) 9. Nf5 {[%emt 0:01:13] Bd5 would be deadly. The position is equal.} c4 {[%emt 0:06:55] [#]} (9... Bxe4 $2 10. Re1 Be7 11. Rxe4 $18) 10. e5 $146 {[%emt 0:15:19]} ({Predecessor:} 10. Bf4 cxb3 11. axb3 Nc6 12. Nc3 g6 13. Nd6+ Bxd6 14. Bxd6 Nge7 15. Nd5 O-O 16. Bc7 {1-0 Vachier Lagrave,M (2760)-Firouzja,A (2759) Paris GCT Rapid 2021 (9)}) 10... Qb6 $1 $19 {[%emt 0:11:27]} 11. Nd6+ {[%emt 0:03:50]} Bxd6 {[%emt 0:01:34]} 12. exd6 {[%emt 0:03:37]} Nf6 {[%emt 0:03:31] Wards off Qg4} 13. Re1+ {[%emt 0:18:07]} Kf8 $1 {[%emt 0:01:34]} 14. Bf4 {[%emt 0:01:34]} (14. Be3 $17 {is a better defense.} Qd8 15. Nd2) 14... cxb3 $40 {[%emt 0:09:36][%mdl 128] Black has strong attack.} 15. axb3 {[%emt 0:00:21]} Nc6 {[%emt 0:06:10]} 16. Be3 {[%emt 0:02:00]} Qd8 {[%emt 0:01:19]} 17. Nc3 {[%emt 0:00:36]} h6 {[%emt 0:02:18]} 18. Qd2 {[%emt 0:09:59]} Kg8 {[%emt 0:03:01]} 19. Bc5 {[%emt 0:01:52]} Qf8 {[%emt 0:08:06]} 20. h3 {[%emt 0:03:27]} Nd8 {[%emt 0:01:48]} 21. Re7 {[%emt 0:01:43]} Ne6 {[%emt 0:04:22]} 22. Bb4 {[%emt 0:02:39]} Qc8 {[%emt 0:02:00][%cal Oa6a5]} 23. Nd1 {[%emt 0:03:52]} Nd5 {[%emt 0:02:49] Inhibits Ne3. Hoping for ...Nxb4.} ({Don't blunder} 23... Qc6 $2 24. Ne3) 24. Ne3 {[%emt 0:00:06]} Nxb4 {[%emt 0:02:32]} 25. Qxb4 {[%emt 0:00:07]} Qc6 {[%emt 0:00:43]} 26. Rd1 {[%emt 0:02:03]} Kh7 {[%emt 0:02:05]} 27. Rxf7 {[%emt 0:01:33]} (27. Qg4 {was necessary.} Rhf8 28. c3) 27... Rhf8 {[%emt 0:00:12]} 28. Re7 {[%emt 0:00:05]} Nf4 {[%emt 0:01:13]} 29. Qd2 {[%emt 0:03:36] [#]} (29. f3 {might work better.}) 29... Nxh3+ $1 {[%emt 0:00:36][%mdl 576] Discovered Attack, Double Attack} 30. Kh2 {[%emt 0:00:05] aiming for Qd4.} Nxf2 {[%emt 0:00:47]} 31. Qd4 {[%emt 0:00:47][%csl Ge7][%cal Rd4g7] Wards off Qc5} Rg8 {[%emt 0:00:30]} 32. Rd2 {[%emt 0:01:46]} Raf8 {[%emt 0:00:14]} 33. Qh4 {[%emt 0:02:13]} Ne4 $4 {[%emt 0:00:46][%mdl 8192] [#]} (33... Kh8 $19 34. Rd5 Rf6) 34. Ng4 $1 $18 {[%emt 0:00:15][%csl Gg4][%cal Rh4h6]} Rf6 {[%emt 0:00:33]} 35. Nxf6+ {[%emt 0:00:17]} Nxf6 {[%emt 0:00:04]} 36. Qxf6 {[%emt 0:00:04]} Kh8 {[%emt 0:00:42]} 37. Qf5 {[%emt 0:00:35]} Bc8 {[%emt 0:00:31]} 38. Qd5 {[%emt 0:00:41]} Qb6 {[%emt 0:00:27]} (38... Qxd5 $142 39. Rxd5 Bb7) 39. Qd4 {[%emt 0:01:08]} Qc6 {[%emt 0:00:36]} (39... Qxd4 $142 40. Rxd4 Kh7) 40. Qc3 {[%emt 0:00:20]} (40. Rde2 $142 {[%cal Oe7g7] White wants to mate with Rxg7!} Bb7 41. Rxg7 {[%mdl 64] Remove Defender, Deflection} Rxg7 42. Re8+ Kh7 43. Qd3+ Qe4 44. Rxe4 Bxe4 45. Qxe4+ Kg8 46. Qb7) 40... Bb7 {[%emt 0:00:35]} 41. Qxc6 {[%emt 0:30:17]} Bxc6 {[%emt 0:30:02][%mdl 4096] Endgame KRR-KRB} 42. Rde2 {[%emt 0:00:27]} Kh7 {[%emt 0:00:00]} 43. Re8 {[%emt 0:00:00]} Rxe8 {[%emt 0:00:00]} 44. Rxe8 {[%emt 0:00:00] KR-KB} Kg6 {[%emt 0:00:00]} 45. b4 {[%emt 0:00:00]} Kf5 {[%emt 0:00:00]} 46. Kg3 {[%emt 0:00:00]} g6 {[%emt 0:00:00]} 47. b3 {[%emt 0:00:00]} Be4 {[%emt 0:00:00]} 48. c4 {[%emt 0:00:00]} bxc4 {[%emt 0:00:00]} 49. bxc4 {[%emt 0:00:00] Black must now prevent b5.} Bd3 {[%emt 0:00:00] [#]} (49... Bc6 $142 50. Re2 Kf6) 50. b5 $1 {[%emt 0:00:00]} Bxc4 {[%emt 0:00:34]} (50... axb5 51. c5) 51. b6 {[%emt 0:00:00]} ({Less strong is} 51. Rf8+ Ke5 $16) 51... Bd5 {[%emt 0:00:10]} 52. Re7 {[%emt 0:00:00]} Bc6 {[%emt 0:02:54] [#]} 53. Rxd7 $3 {[%emt 0:00:00][%mdl 512]} Ke6 {[%emt 0:00:04]} (53... Bxd7 54. b7) 54. b7 {[%emt 0:00:00]} (54. Rg7 $142 Kxd6 55. b7 Bxb7 56. Rxb7 Kc5 57. Rh7 h5 58. Rg7 Kc6 59. Rxg6+ Kb5 60. Kh4) 54... Kd5 {[%emt 0:00:07] A brilliant game!   Weighted Error Value: White=0.70/Black=0.36} 1-0

[Event "51st Rilton Cup 2023-24"]
[Site "Stockholm"]
[Date "2023.12.27"]
[Round "1.7"]
[White "Grahn, Vidar"]
[Black "Raja Rithvik R"]
[Result "0-1"]
[ECO "D30"]
[WhiteElo "2274"]
[BlackElo "2500"]
[Annotator "TA"]
[PlyCount "76"]
[EventDate "2023.12.27"]
[EventType "swiss"]
[EventCountry "SWE"]
[SourceTitle "playchess.com"]
[Source "ChessBase"]
[SourceQuality "1"]
[TimeControl "40/5400+30:1800+30"]

{[%evp 9,76,9,0,0,0,0,0,-19,0,0,0,0,0,-6,0,-2,0,-46,-43,-42,0,0,0,-28,-45,-163,-152,-166,-146,-269,-258,-268,-266,-265,-247,-275,-280,-272,-252,-239,-250,-267,-218,-276,-242,-279,-144,-143,-154,-239,-248,-294,-294,-294,-280,-258,-264,-270,-217,-353,-316,-337,-288,-350,-335,-326,-325,-1258,-1291]} 1. d4 {[%emt 0:00:03]} d5 {[%emt 0:01:23]} 2. c4 {[%emt 0:00:04]} e6 {[%emt 0:00:05]} 3. Nf3 {[%emt 0:00:04]} c6 {[%emt 0:00:31]} 4. g3 {[%emt 0:00:19]} dxc4 {[%emt 0:00:06]} 5. Bg2 {[%emt 0:00:09]} b5 {[%emt 0:00:05]} 6. Ne5 {[%emt 0:01:33] D30: Queen's Gambit Declined: Systems without Nc3.} Bb7 {[%emt 0:00:08]} 7. O-O {[%emt 0:00:50]} Nf6 {[%emt 0:00:06][%cal Bg8f6,Bf6d7,Bd7c5][%mdl 32]} 8. a4 {[%emt 0:00:31] [#] axb5 would be deadly. The position is equal.} a6 {[%emt 0:00:04]} 9. b3 {[%emt 0:00:15]} cxb3 {[%emt 0:00:06]} 10. Bb2 {[%emt 0:00:05]} Nbd7 {[%emt 0:01:16]} 11. Qxb3 {[%emt 0:10:12]} Nxe5 {[%emt 0:00:56]} 12. dxe5 {[%emt 0:00:52]} Nd7 {[%emt 0:00:03]} 13. Nc3 {[%emt 0:07:31]} (13. Nd2 $11) 13... Nc5 $15 {[%emt 0:09:11]} 14. Qc2 {[%emt 0:01:25] [#]} Be7 $146 {[%emt 0:00:04]} (14... b4 $5 {[%cal Rb4c3]} 15. Nb1 Nd7 $15) ({Predecessor:} 14... b4 15. Nd1 Nd7 16. Ne3 Qc8 17. Nc4 c5 18. Be4 Bxe4 19. Qxe4 Be7 20. f4 g6 {0-1 Aditya,M (2487)-Gukesh,D (2614) BAN-chT Dhaka 2022 (8.6)}) 15. Rfd1 {[%emt 0:04:00]} Qb6 {[%emt 0:01:25]} 16. a5 {[%emt 0:01:01]} Qc7 {[%emt 0:01:28]} 17. f4 {[%emt 0:07:54]} (17. Ne4 Nxe4 18. Bxe4 c5 $19) (17. Ba3 $15) 17... O-O $19 {[%emt 0:02:17]} 18. e3 {[%emt 0:07:11]} Rfd8 {[%emt 0:11:01]} 19. Rd4 {[%emt 0:08:19]} (19. Ba3 $17) 19... Nd7 {[%emt 0:04:40]} 20. Ne4 {[%emt 0:04:26]} c5 {[%emt 0:01:21]} 21. Rad1 {[%emt 0:10:04]} Nf8 {[%emt 0:08:55]} (21... Qxa5 22. Rxd7 Qa4 23. Qxa4 bxa4 24. Nf6+ Bxf6 25. Bxb7 Rxd7 26. Rxd7 $18 (26. Bxa8 $2 Rxd1+ 27. Kf2 Rd2+ {[%mdl 64] Skewer, Double Attack} 28. Kf3 Rxb2 $19)) 22. Nd6 {[%emt 0:05:09]} Bxg2 {[%emt 0:01:40]} (22... Qxa5 $2 23. Nxb7 Qc7 24. Nxd8 Rxd8 25. Rxd8 Bxd8 26. Rd6 $18) 23. Kxg2 {[%emt 0:01:43]} Rd7 {[%emt 0:12:11]} ({Not} 23... Qxa5 24. Qxc5 Bxd6 25. Rxd6 $17) 24. R4d2 {[%emt 0:02:18]} Rad8 {[%emt 0:00:26][%cal Re7d6]} (24... Qxa5 25. Qxc5 Rc7 26. Qd4 $15) 25. Kf2 {[%emt 0:04:33]} Qc6 {[%emt 0:06:19][%cal Re7d6]} ({And not} 25... Qxa5 26. Qxc5 Qc7 27. Qxc7 Rxc7 28. Ba3 $15) ({Weaker is} 25... Bxd6 26. exd6 Qc6 27. Qc3 $17) 26. Ba3 {[%emt 0:08:52]} Bxd6 {[%emt 0:02:19]} 27. exd6 {[%emt 0:00:20] [#]} Rxd6 {[%emt 0:00:10]} (27... Rc8 $1 $19 {White must now prevent ...b4.} 28. Bc1 b4) 28. Rxd6 $17 {[%emt 0:00:09]} Rxd6 {[%emt 0:00:04]} 29. Rxd6 {[%emt 0:00:58]} (29. Rc1 $17) 29... Qxd6 $19 {[%emt 0:00:02]} 30. Bxc5 {[%emt 0:01:06][%mdl 4096] Endgame KQB-KQN} Qc7 {[%emt 0:05:19] Hoping for ...Nd7.} 31. Qc3 {[%emt 0:01:02]} Nd7 {[%emt 0:00:06]} 32. Bb4 {[%emt 0:00:10]} Qxc3 {[%emt 0:05:52]} 33. Bxc3 {[%emt 0:00:13] KB-KN} Nc5 {[%emt 0:00:18] ...Ne4+ is the strong threat.} 34. Bd4 {[%emt 0:00:48]} (34. Ke2 {was called for.}) 34... Ne4+ {[%emt 0:01:02]} 35. Ke2 {[%emt 0:00:15]} f5 {[%emt 0:00:15]} 36. Kd3 {[%emt 0:00:36]} Kf7 {[%emt 0:00:10]} 37. Bb2 {[%emt 0:01:03]} Nc5+ {[%emt 0:01:15]} 38. Kc3 $2 {[%emt 0:00:38]} (38. Kc2) 38... Na4+ {[%emt 0:02:47] Weighted Error Value: White=0.45/Black=0.08 (flawless)} 0-1

[Event "51st Rilton Cup 2023-24"]
[Site "Stockholm"]
[Date "2023.12.27"]
[Round "1.8"]
[White "Parkhov, Yair"]
[Black "Srija, Seshadri"]
[Result "1-0"]
[ECO "D31"]
[WhiteElo "2495"]
[BlackElo "2272"]
[Annotator "TA"]
[PlyCount "55"]
[EventDate "2023.12.27"]
[EventType "swiss"]
[EventCountry "SWE"]
[SourceTitle "playchess.com"]
[Source "ChessBase"]
[SourceQuality "1"]
[TimeControl "40/5400+30:1800+30"]

{[%evp 16,54,0,0,0,-31,-46,-24,20,0,0,-18,133,131,127,112,97,108,109,137,299,131,127,95,205,200,228,218,411,386,569,575,501,313,1327,1294,29980,389,2120,2081,29999]} 1. d4 {[%emt 0:00:02]} d5 {[%emt 0:00:15]} 2. c4 {[%emt 0:00:06]} e6 {[%emt 0:00:17]} 3. Nc3 {[%emt 0:00:16]} c6 {[%emt 0:00:17]} 4. e4 {[%emt 0:01:06]} dxe4 {[%emt 0:00:12]} 5. Nxe4 {[%emt 0:00:07]} Bb4+ {[%emt 0:00:11]} 6. Bd2 {[%emt 0:00:06][%cal Bc1d2,Bd2b4,Bb4d6][%mdl 32]} Qxd4 {[%emt 0:00:17]} 7. Bxb4 {[%emt 0:00:05]} Qxe4+ {[%emt 0:00:07]} 8. Be2 {[%emt 0:00:07][%cal Bf1e2,Be2f3,Bf3h5][%mdl 32]} Na6 {[%emt 0:00:33]} 9. Bd6 {[%emt 0:00:05]} Qxg2 {[%emt 0:02:14] D31: Queen's Gambit Declined: Semi-Slav without ...Nf6 (+ Marshall Gambit and Noteboom) and Exchange Variation lines without ...Nf6.} 10. Bf3 {[%emt 0:00:07]} (10. Qd2 $5 {[%cal Rd6g3]} Nf6 11. Bf3 $11) 10... Qg5 {[%emt 0:00:29]} 11. Ne2 $1 {[%emt 0:00:07] [#]} Bd7 $146 {[%emt 0:08:32] Black has an edge.} ({Predecessor:} 11... Ne7 12. Rg1 Qa5+ 13. Nc3 Nf5 14. Kf1 e5 15. Be4 Nxd6 16. Qxd6 Bh3+ 17. Ke2 Rd8 18. Qa3 Qxa3 19. bxa3 g6 20. Na4 Be6 21. Rgc1 Rd4 {0-1 Shyam,N (2398)-Adhiban,B (2542) Wch U20 50th 2011 (7)}) 12. b4 {[%emt 0:30:40][%cal Ob4b5][%mdl 1024] White has compensation.} (12. Rg1 $5 {[%cal Rg1g5]} Qa5+ 13. Nc3 $14) 12... Rd8 {[%emt 0:27:44]} 13. Ng3 {[%emt 0:06:25]} f5 $2 {[%emt 0:04:07]} ({Black should try} 13... Bc8 $11 14. Ne4 Qh6) 14. Bh5+ $16 {[%emt 0:20:04] A strong pair of Bishops.} g6 {[%emt 0:00:12]} 15. Qd4 $1 $36 {[%emt 0:01:12][%csl LRa7,LRh8][%mdl 2048] White is in control.} e5 {[%emt 0:06:33]} 16. Bxe5 {[%emt 0:09:04] Bf3 is the strong threat. White is more active.} (16. Qxe5+ Kf7 17. Be2 (17. Qxh8 Re8+ $15) 17... Re8 $14) 16... Be6 {[%emt 0:00:21]} 17. Qc3 {[%emt 0:02:30] Be2 would be deadly.} ({Inferior is} 17. Qxa7 f4 18. Bxh8 fxg3 19. hxg3 Bxc4 20. Qe3+ Qxe3+ 21. fxe3 gxh5 $17) 17... f4 $2 {[%emt 0:03:41] [#]} (17... gxh5 $16 18. Bxh8 f4) 18. Ne4 {[%emt 0:09:18]} ({Weaker is} 18. Bxh8 fxg3 19. fxg3 gxh5 $16) (18. Be2 $1 $18 {and the rest is easy.}) 18... Qxh5 {[%emt 0:00:37]} (18... Qg2 $2 19. Bf3 Qh3 20. Ng5 $18) 19. Bxh8 {[%emt 0:00:23]} b5 {[%emt 0:13:00] [#]} (19... Rd7 $16 {is a better defense.}) 20. O-O $1 $18 {[%emt 0:06:50][%cal Bh1f1,Bf1d1,Bd1e1][%mdl 32]} bxc4 {[%emt 0:05:45]} 21. f3 {[%emt 0:01:10]} Nc7 $2 {[%emt 0:08:19]} (21... Rd3 22. Qg7 Rxf3) 22. Rad1 {[%emt 0:03:03] Strongly threatening Qg7.} Rxd1 {[%emt 0:03:02]} (22... Nd5 $142 23. Qxc4 Nge7) 23. Rxd1 {[%emt 0:00:05]} Nd5 {[%emt 0:00:07]} 24. Qxc4 {[%emt 0:05:14]} Qxf3 $2 {[%emt 0:01:21]} (24... Nge7 25. Qe2 Kf8) 25. Qxc6+ {[%emt 0:00:10]} Kf8 {[%emt 0:00:11]} 26. Nf2 $2 {[%emt 0:00:16]} (26. Qd6+ {mates} Ke8 27. Qxe6+ Nge7 28. Rxd5 Qe3+ 29. Kf1 Qf3+ 30. Ke1 Qh1+ 31. Kd2) 26... Kf7 $2 {[%emt 0:03:45]} (26... Qe3 27. Bd4 Qe2 28. Bc5+ Nde7) 27. Re1 {[%emt 0:00:25]} Bh3 {[%emt 0:01:42]} 28. Qe8# {[%emt 0:00:10] A superb game by Parkhov.   Weighted Error Value: White=0.43/Black=1.03} 1-0

[Event "51st Rilton Cup 2023-24"]
[Site "Stockholm"]
[Date "2023.12.27"]
[Round "1.9"]
[White "Srihari L"]
[Black "Hillarp Persson, Tiger"]
[Result "1/2-1/2"]
[ECO "B42"]
[WhiteElo "2272"]
[BlackElo "2493"]
[Annotator "TA"]
[PlyCount "85"]
[EventDate "2023.12.27"]
[EventType "swiss"]
[EventCountry "SWE"]
[SourceTitle "playchess.com"]
[Source "ChessBase"]
[SourceQuality "1"]
[TimeControl "40/5400+30:1800+30"]

{[%evp 14,85,42,48,45,0,35,29,45,49,46,40,40,21,26,24,29,3,52,58,60,-4,0,-34,-40,-53,-71,-52,-56,-92,-67,-86,-90,-188,-187,-176,-170,-193,-183,-195,-154,-290,-281,-300,-298,-349,-366,-360,-317,-365,-412,-622,-597,-634,-632,-5066,-5066,-5050,-2323,-1855,-1455,-5058,-5050,-29979,-29980,-29985,-29986,-29986,-29987,-29987,-29988,-29991,0,-1862]} 1. e4 {[%emt 0:00:04]} c5 {[%emt 0:00:16]} 2. Nf3 {[%emt 0:00:05]} e6 {[%emt 0:00:18]} 3. d4 {[%emt 0:00:05]} cxd4 {[%emt 0:00:05]} 4. Nxd4 {[%emt 0:00:03]} a6 {[%emt 0:00:09]} 5. Bd3 {[%emt 0:00:07]} Bc5 {[%emt 0:00:19]} 6. Nb3 {[%emt 0:00:10]} Be7 {[%emt 0:00:07]} 7. O-O {[%emt 0:00:22]} d6 {[%emt 0:00:16]} 8. c4 {[%emt 0:01:00]} Nf6 {[%emt 0:02:35] B42: Sicilian: Kan Variation: 5 Bd3.} 9. Qe2 {[%emt 0:00:25]} Nbd7 {[%emt 0:04:10]} 10. f4 {[%emt 0:00:26]} b6 {[%emt 0:08:27] White has an edge.} 11. Nc3 {[%emt 0:00:45]} Bb7 {[%emt 0:00:12]} 12. Bd2 {[%emt 0:00:57]} O-O {[%emt 0:12:58]} 13. Rae1 {[%emt 0:00:41]} Re8 {[%emt 0:17:32]} 14. Bc2 {[%emt 0:16:14] [#]} e5 $146 {[%emt 0:07:51]} ({Predecessor:} 14... g6 15. Kh1 Qc7 16. Nd4 Bf8 17. Nf3 Rad8 18. Bb1 Bc6 19. b3 Qb7 20. Nd4 Bg7 21. Nxc6 Qxc6 {0-1 Smideliusz,M (1945)-Tesik,C (2159) HUN-ch U16 Budapest 2010 (4)}) 15. g4 {[%emt 0:13:24] Black must now prevent g5.} g6 {[%emt 0:12:02]} (15... Nf8 $11) 16. f5 $1 $14 {[%emt 0:07:34]} b5 {[%emt 0:01:04]} 17. g5 {[%emt 0:15:59]} (17. Bd3 $14) 17... Nh5 $11 {[%emt 0:00:06]} 18. f6 {[%emt 0:01:32]} (18. cxb5 Bxg5 19. Kh1 Bxd2 20. Qxd2 Ndf6 21. bxa6 Rxa6 $17) (18. Kh1 $5 {[%cal Rf5f6]}) 18... Bf8 {[%emt 0:00:07][%cal Oh7h6]} 19. Bd3 {[%emt 0:16:23]} (19. cxb5 axb5 20. a3 (20. Nxb5 Rxa2 21. Rb1 d5 $17) (20. Qxb5 Ba6 $17) 20... h6 $11) 19... bxc4 {[%emt 0:04:43]} 20. Bxc4 {[%emt 0:00:02]} Nb6 {[%emt 0:00:11]} 21. Bd5 {[%emt 0:03:34] White is now going downhill.} Nxd5 {[%emt 0:01:05]} 22. Nxd5 {[%emt 0:00:46]} a5 {[%emt 0:03:46][%cal Oh7h6]} 23. Rf3 {[%emt 0:02:53]} (23. Nc1 $17 {might work better.}) 23... a4 $19 {[%emt 0:03:24]} 24. Nc1 {[%emt 0:00:18] [#]} Nf4 $1 {[%emt 0:03:39][%mdl 512]} 25. Bxf4 {[%emt 0:07:35]} (25. Qb5 Ba6) 25... exf4 {[%emt 0:00:08]} 26. Qd2 {[%emt 0:01:39]} h6 {[%emt 0:08:13]} 27. h4 {[%emt 0:04:58]} (27. gxh6 $17 {is a better defense.} Bxd5 28. h7+ Kxh7 29. Qxd5 Qxf6 30. Nd3) 27... hxg5 {[%emt 0:00:13]} 28. hxg5 {[%emt 0:00:09]} Re5 {[%emt 0:00:24]} 29. Qxf4 {[%emt 0:01:44]} Bxd5 {[%emt 0:00:13]} 30. Nd3 {[%emt 0:00:51]} Be6 {[%emt 0:00:39][%cal Od8a5] Strongly threatening ...Qa5!} (30... Bxa2 31. Qh4 Be6 32. Nf4 Qb6+ 33. Kg2 Qxb2+ 34. Rf2 $11) 31. Nxe5 {[%emt 0:03:29]} dxe5 {[%emt 0:00:07]} 32. Qh4 {[%emt 0:00:08]} (32. Qh2 $142) 32... Qd2 {[%emt 0:05:31]} (32... Bxa2 33. Rh3 Qb6+ 34. Kh1) 33. Ref1 {[%emt 0:00:54]} Rb8 {[%emt 0:02:02]} ({Weaker is} 33... Qxb2 34. R3f2 Qd4 35. Kg2 $15) (33... Bxa2 {gets mated.} 34. Rh3) 34. Kh1 {[%emt 0:01:40]} Rxb2 {[%emt 0:01:28][%csl Gb2][%cal Rd2g2]} (34... Qxb2 35. R3f2 Qb5 36. Kg2 $18) 35. R3f2 {[%emt 0:00:21] Inhibits Qg2+.} Qd4 {[%emt 0:00:38]} 36. Rxb2 {[%emt 0:00:25]} Qxb2 {[%emt 0:00:14]} 37. Rf2 {[%emt 0:00:05]} Qb1+ {[%emt 0:02:23]} 38. Kg2 {[%emt 0:00:05]} Bc5 {[%emt 0:01:00]} 39. Rf1 {[%emt 0:00:47]} Qxa2+ {[%emt 0:00:08]} 40. Kh1 {[%emt 0:00:15]} Qc2 {[%emt 0:00:41]} 41. Re1 {[%emt 0:31:33]} a3 {[%emt 0:30:44]} 42. Re3 {[%emt 0:00:31]} a2 {[%emt 0:00:33]} ({And not} 42... Bxe3 43. Qh8+ Kxh8 $11) (42... Qb1+ $142 43. Re1 a2 44. Kg2 a1=Q 45. Rxb1 Qxb1 46. Qf2 Bxf2 47. Kxf2 Qxe4 48. Kg1 Qe2 49. Kh1 Bd5+ 50. Kg1 Qg2#) 43. Qh8+ {[%emt 0:00:12][%mdl 32832] Decoy. A fantastic game!   Weighted Error Value: White=0.77/Black=0.19 (very precise) . An unexpected result.} 1/2-1/2

[Event "51st Rilton Cup 2023-24"]
[Site "Stockholm"]
[Date "2023.12.27"]
[Round "1.10"]
[White "Bailet, Pierre"]
[Black "Md Bashiq Imrose"]
[Result "1-0"]
[ECO "B12"]
[WhiteElo "2492"]
[BlackElo "2266"]
[Annotator "TA"]
[PlyCount "49"]
[EventDate "2023.12.27"]
[EventType "swiss"]
[EventCountry "SWE"]
[SourceTitle "playchess.com"]
[Source "ChessBase"]
[SourceQuality "1"]
[TimeControl "40/5400+30:1800+30"]

{[%evp 13,49,16,21,19,27,21,35,0,0,0,0,0,0,-116,-66,-67,-79,-64,-67,-63,0,0,0,0,0,0,0,0,310,310,310,300,307,316,852,834,783,740]} 1. e4 {[%emt 0:00:24]} c6 {[%emt 0:01:08][%cal Bc7c6,Bc6c5][%mdl 32]} 2. d4 {[%emt 0:01:33]} d5 {[%emt 0:00:12]} 3. e5 {[%emt 0:00:39]} Bf5 {[%emt 0:01:27]} 4. Nf3 {[%emt 0:00:38]} e6 {[%emt 0:00:30]} 5. Be2 {[%emt 0:00:19]} c5 {[%emt 0:01:08]} 6. Be3 {[%emt 0:02:25]} Qb6 {[%emt 0:02:46]} 7. Nc3 {[%emt 0:01:35][%cal Bb1c3,Bc3b5,Bb5c7][%mdl 32]} Nc6 {[%emt 0:00:58]} (7... Qxb2 8. Nb5 $16) 8. O-O {[%emt 0:01:28] B12: Caro-Kann: Advance Variation.} Qxb2 {[%emt 0:00:24]} 9. Nb5 {[%emt 0:04:21] [#] Nc7+ is the strong threat.} (9. Qe1 $5 {[%cal Ra1b1]} O-O-O 10. Rb1 Qxc2 11. Bd1 $11) 9... c4 {[%emt 0:01:17]} 10. Nc7+ {[%emt 0:03:20] White is slightly better.} Kd7 $1 {[%emt 0:00:34]} 11. Nxa8 {[%emt 0:03:26]} Bxc2 {[%emt 0:00:08]} 12. Qc1 {[%emt 0:03:14]} Ba3 {[%emt 0:00:08] Hoping for ...Nge7.} 13. Rb1 {[%emt 0:28:06]} Bxb1 {[%emt 0:09:16]} ({Better is} 13... Qxb1 $17 14. Qxa3 (14. Qxb1 Bxb1 15. Rxb1 b6 $17) 14... Qb4 15. Nb6+ axb6) 14. Qxb2 $15 {[%emt 0:00:55][%mdl 64] [#] Remove Defender} (14. Qxb1 Nge7 15. Qxb2 Bxb2 $17) 14... Bxb2 {[%emt 0:00:02]} 15. Rxb1 {[%emt 0:00:08][%cal Bf1b1,Bb1b7,Bb7c7,Bc7c6][%mdl 32]} c3 {[%emt 0:00:15]} 16. Bc1 {[%emt 0:00:43]} Bxc1 {[%emt 0:13:02]} (16... Nge7 $15) 17. Rxb7+ $11 {[%emt 0:03:52]} ({Much weaker is} 17. Rxc1 Nge7 18. Rxc3 Rxa8 $17) 17... Kd8 {[%emt 0:03:10] aiming for ...Nge7.} 18. Bb5 $36 {[%emt 0:00:36][%mdl 2048] White has the initiative.} Nge7 {[%emt 0:09:18] Strongly threatening ...Bd2.} 19. Bxc6 {[%emt 0:05:41]} Nxc6 {[%emt 0:00:15]} 20. Rc7 {[%emt 0:00:11] [#]} Bd2 $146 {[%emt 0:16:13][%mdl 8192]} ({Predecessor:} 20... Na5 21. Rxc3 Nc4 22. Rxc1 Kd7 23. Rb1 Kc6 24. Ng5 h6 25. Nxf7 Rxa8 26. g3 Rf8 {0-1 Audi,A (2418)-Zakhartsov,V (2531) Novi Sad TS Mix 242nd 2022 (1)}) 21. Rxc6 $18 {[%emt 0:03:06]} Re8 {[%emt 0:00:58]} 22. Kf1 {[%emt 0:03:50]} Ke7 {[%emt 0:00:23]} 23. Nc7 {[%emt 0:04:25]} Kd7 {[%emt 0:00:57]} (23... Rb8 24. Nxd2 cxd2) 24. Nxe8 {[%emt 0:00:53]} ({Not} 24. Rc5 Rc8 $16) 24... Kxc6 {[%emt 0:00:06]} 25. Nxd2 {[%emt 0:00:17] Weighted Error Value: White=0.11 (very precise) /Black=0.40} (25. Nxg7 $2 {too greedy.} c2 26. Nxd2 c1=Q+ 27. Ke2 Qb2 $19) 1-0